bitfinex/quotes_SOLUSD_20250414
["timestamp","ask_amount","ask_price","bid_price","bid_amount"]
[1744637953820,38.60774229,132.68,132.64,0.42648471]
[1744637954005,38.60774229,132.7,132.66,7.538]
[1744637954208,38.60774229,132.69,132.66,0.14216157]
[1744637954421,38.60774229,132.67,132.63,1.581]
[1744637954627,38.60774229,132.66,132.63,1.581]
[1744637954930,38.60774229,132.67,132.63,47.72824229]
[1744637955128,18.64964886,132.63,132.56,82.663]
[1744637955313,18.64964886,132.65,132.56,0.063]
[1744637955631,38.60774229,132.58,132.56,0.063]
[1744637955935,38.60774229,132.59,132.56,0.063]
[1744637956313,38.60774229,132.59,132.56,0.20516157]
[1744637956513,38.60774229,132.63,132.59,0.14216157]
[1744637956714,38.60774229,132.65,132.61,0.14216157]
[1744637957230,38.60774229,132.65,132.61,82.74216157]
[1744637957420,38.60774229,132.65,132.61,121.34990386]
[1744637957622,0.063,132.72,132.65,0.14216157]
[1744637957823,0.063,132.72,132.7,38.74990386]
[1744637958023,0.063,132.72,132.71,46.569427]
[1744637958324,0.063,132.72,132.71,46.28510386]
[1744637958513,38.67074229,132.79,132.72,0.14216157]
[1744637958713,38.60774229,132.76,132.72,0.14216157]
[1744637958911,38.60774229,132.78,132.74,0.14216157]
[1744637959523,38.60774229,132.77,132.72,38.60774229]
[1744637959721,38.60774229,132.77,132.72,39.034227]
[1744637960012,38.67074229,132.79,132.75,7.5329]
[1744637960332,0.063,132.79,132.78,0.14216157]
[1744637960511,0.063,132.79,132.76,38.60774229]
[1744637960707,38.60774229,132.77,132.73,7.81792314]
[1744637960910,38.60774229,132.78,132.74,0.42648471]
[1744637961119,0.063,132.79,132.78,0.14216157]
[1744637961320,0.063,132.79,132.77,0.14216157]
[1744637961517,0.063,132.79,132.78,38.60774229]
[1744637961726,0.063,132.79,132.77,0.14216157]
[1744637961932,0.063,132.79,132.78,46.28110386]
[1744637962519,38.60774229,132.85,132.79,0.28432314]
[1744637962727,38.60774229,132.86,132.82,0.14216157]
[1744637963222,38.60774229,132.85,132.8,38.60774229]
[1744637963430,38.60774229,132.85,132.81,0.14216157]
[1744637963632,9.5,132.88,132.81,38.60774229]
[1744637963936,48.10774229,132.88,132.83,38.74990386]
[1744637964116,9.5,132.88,132.83,46.27810386]
[1744637964316,48.10774229,132.88,132.83,46.27810386]
[1744637964517,38.60774229,132.87,132.83,0.14216157]
[1744637964735,9.5,132.88,132.83,46.27810386]
[1744637964940,9.5,132.88,132.85,0.14216157]
[1744637965250,0.063,132.9,132.87,0.14216157]
[1744637965847,0.063,132.9,132.88,0.14216157]
[1744637966058,0.063,132.9,132.88,7.66726157]
[1744637966645,0.063,132.9,132.88,46.27500386]
[1744637967225,0.063,132.9,132.85,7.66936157]
[1744637967421,0.063,132.9,132.89,0.14216157]
[1744637967629,0.063,132.9,132.89,38.74990386]
[1744637968249,0.063,132.9,132.89,46.559227]
[1744637968753,0.063,132.9,132.89,129.30138857]
[1744637969645,0.063,132.9,132.89,147.95103743]
[1744637969851,0.03,132.99,132.91,0.28432314]
[1744637970020,0.03,132.99,132.96,38.60774229]
[1744637970224,0.03,132.99,132.97,0.14216157]
[1744637970840,0.03,132.99,132.96,0.14216157]
[1744637971237,0.03,132.99,132.96,38.74990386]
[1744637971867,0.03,132.99,132.96,0.14216157]
[1744637972039,0.03,132.99,132.96,38.74990386]
[1744637972241,0.03,132.99,132.95,38.60774229]
[1744637972434,38.60774229,132.96,132.9,90.1243]
[1744637972754,38.60774229,132.94,132.9,82.6]
[1744637972961,38.60774229,132.94,132.9,90.1243]
[1744637973328,38.60774229,132.94,132.9,82.6]
[1744637973531,38.60774229,132.92,132.88,0.14216157]
[1744637973838,38.60774229,132.94,132.9,38.60774229]
[1744637974036,9.5,132.97,132.94,0.14216157]
[1744637974346,0.03,132.99,132.94,90.26426157]
[1744637974529,38.60774229,132.98,132.94,90.26426157]
[1744637974856,0.03,132.99,132.97,38.74990386]
[1744637975056,0.03,132.99,132.98,38.60774229]
[1744637975222,0.03,132.99,132.98,83.02648471]
[1744637975429,0.03,132.99,132.98,121.634227]
[1744637975732,0.03,132.99,132.98,121.77638857]
[1744637976426,0.03,132.99,132.98,129.154127]
[1744637976859,0.03,132.99,132.98,129.29628857]
[1744637977178,0.03,133.03,133.02,26.0]
[1744637977454,0.03,133.03,133.02,39.034227]
[1744637977963,0.03,133.03,133.02,0.14216157]
[1744637978842,38.63774229,133.03,132.98,0.14216157]
[1744637979170,38.60774229,133.0,132.96,90.121]
[1744637979460,38.60774229,133.01,132.96,38.74990386]
[1744637979760,38.60774229,133.02,132.94,38.74990386]
[1744637980053,9.51,133.03,132.94,46.27200386]
[1744637980355,38.60774229,132.98,132.94,82.74216157]
[1744637980537,38.60774229,132.98,132.94,90.26426157]
[1744637981051,38.60774229,132.97,132.94,82.74216157]
[1744637981225,7.52,132.98,132.91,94.07663211]
[1744637981226,38.60774229,132.95,132.91,94.07663211]
[1744637981428,38.60774229,132.95,132.91,11.47663211]
[1744637981641,38.60774229,132.93,132.89,7.66696157]
[1744637981960,9.48,132.97,132.91,38.60774229]
[1744637982253,9.48,132.97,132.92,38.74990386]
[1744637982427,38.60774229,132.94,132.89,82.6]
[1744637982633,38.60774229,132.9,132.84,6.6509]
[1744637982831,18.79181043,132.94,132.84,7.5278]
[1744637982832,38.60774229,132.88,132.84,7.5278]
[1744637983031,38.60774229,132.87,132.85,0.14216157]
[1744637983437,9.48,132.91,132.84,0.14216157]
[1744637983640,38.60774229,132.88,132.84,0.14216157]
[1744637983825,38.60774229,132.87,132.84,0.14216157]
[1744637984031,38.60774229,132.88,132.84,0.14216157]
[1744637984344,9.48,132.91,132.84,38.74990386]
[1744637984566,38.60774229,132.89,132.86,0.14216157]
[1744637984761,38.60774229,132.88,132.86,0.14216157]
[1744637984943,38.60774229,132.89,132.86,0.14216157]
[1744637985253,38.60774229,132.87,132.83,82.6]
[1744637985427,38.60774229,132.87,132.81,18.8238]
[1744637985428,1.0,132.87,132.82,46.27880386]
[1744637985632,1.0,132.87,132.85,0.14216157]
[1744637986256,39.60774229,132.87,132.82,7.5289]
[1744637986444,38.60774229,132.85,132.82,0.14216157]
[1744637986651,38.60774229,132.84,132.8,7.5299]
[1744637986967,38.60774229,132.82,132.79,0.14216157]
[1744637987263,38.60774229,132.8,132.73,38.60774229]
[1744637987433,38.60774229,132.78,132.74,0.14216157]
[1744637987758,38.60774229,132.78,132.73,38.60774229]
[1744637988133,38.60774229,132.78,132.73,38.74990386]
[1744637988328,38.60774229,132.8,132.76,0.14216157]
[1744637988860,38.60774229,132.79,132.76,7.67426157]
[1744637989037,38.60774229,132.8,132.76,7.67426157]
[1744637990461,38.60774229,132.8,132.76,0.14216157]
[1744637990758,38.60774229,132.78,132.74,7.5333]
[1744637990931,38.60774229,132.76,132.74,7.5333]
[1744637991132,38.60774229,132.76,132.73,0.14216157]
[1744637991330,38.60774229,132.78,132.74,0.14216157]
[1744637991560,48.00774229,132.79,132.74,38.74990386]
[1744637991853,16.9279,132.84,132.78,38.74990386]
[1744637992066,38.60774229,132.82,132.78,0.14216157]
[1744637992363,38.60774229,132.8,132.75,46.14064229]
[1744637992555,38.60774229,132.81,132.77,0.14216157]
[1744637993742,38.60774229,132.81,132.75,26.3652]
[1744637993944,38.60774229,132.81,132.76,38.60774229]
[1744637994445,7.5286,132.83,132.77,7.67396157]
[1744637994762,38.60774229,132.81,132.77,7.67396157]
[1744637994966,38.60774229,132.81,132.76,46.13994229]
[1744637995139,38.60774229,132.77,132.73,0.14216157]
[1744637995468,38.60774229,132.78,132.73,46.28390386]
[1744637995648,38.60774229,132.79,132.74,38.60774229]
[1744637996235,38.60774229,132.78,132.73,46.14174229]
[1744637996548,38.60774229,132.78,132.74,0.14216157]
[1744637996747,38.60774229,132.78,132.74,38.74990386]
[1744637996943,38.60774229,132.75,132.72,7.5344]
[1744637997858,38.60774229,132.77,132.73,0.14216157]
[1744637998164,38.60774229,132.77,132.73,82.74216157]
[1744637998343,38.60774229,132.76,132.73,90.1336]
[1744637998548,7.5319,132.77,132.73,82.6]
[1744637998757,7.5314,132.78,132.73,90.1337]
[1744637998943,38.60774229,132.75,132.73,82.6]
[1744637999762,18.64964886,132.77,132.73,82.6]
[1744637999962,38.60774229,132.74,132.71,82.63]
[1744638000268,9.4,132.8,132.72,0.14216157]
[1744638000434,9.4,132.8,132.74,38.60774229]
[1744638000758,9.4,132.8,132.75,38.74990386]
[1744638000958,9.4,132.8,132.75,121.34990386]
[1744638001164,9.4,132.8,132.77,38.60774229]
[1744638001344,38.60774229,132.79,132.76,0.14216157]
[1744638001543,48.00774229,132.8,132.76,0.14216157]
[1744638001759,38.60774229,132.79,132.76,0.14216157]
[1744638002075,38.60774229,132.79,132.75,82.6]
[1744638002369,38.60774229,132.76,132.71,82.63]
[1744638002573,95.86513344,132.72,132.71,0.03]
[1744638002749,105.42729501,132.72,132.71,0.03]
[1744638002950,105.28513344,132.72,132.71,0.03]
[1744638003146,48.02774229,132.72,132.71,0.03]
[1744638003868,9.42,132.72,132.71,0.03]
[1744638004054,38.60774229,132.76,132.71,46.31510386]
[1744638004256,9.42,132.78,132.75,38.60774229]
[1744638004562,9.42,132.78,132.75,7.5325]
[1744638004751,9.42,132.78,132.74,7.5333]
[1744638004954,48.02774229,132.78,132.74,46.14104229]
[1744638005146,48.02774229,132.78,132.74,7.5333]
[1744638005344,9.42,132.78,132.75,38.60774229]
[1744638005554,38.60774229,132.77,132.73,7.5338]
[1744638005974,38.60774229,132.76,132.73,7.5338]
[1744638006147,38.60774229,132.76,132.71,121.37990386]
[1744638006348,38.60774229,132.73,132.71,0.03]
[1744638006645,105.42729501,132.72,132.71,0.03]
[1744638006849,0.14216157,132.7,132.69,0.03]
[1744638007178,38.60774229,132.7,132.69,0.03]
[1744638007480,9.42,132.72,132.69,7.5663]
[1744638007647,48.02774229,132.72,132.69,7.5663]
[1744638008066,48.02774229,132.72,132.69,90.1663]
[1744638008256,38.60774229,132.74,132.7,0.14216157]
[1744638008469,7.5326,132.76,132.71,7.5352]
[1744638008791,38.60774229,132.76,132.72,0.14216157]
[1744638008971,9.42,132.77,132.73,38.60774229]
[1744638009284,38.60774229,132.74,132.69,0.03]
[1744638009463,38.60774229,132.71,132.69,0.03]
[1744638009656,38.60774229,132.73,132.69,7.5662]
[1744638009861,38.60774229,132.74,132.69,46.17394229]
[1744638010072,48.02774229,132.77,132.73,0.14216157]
[1744638010272,38.60774229,132.8,132.75,38.74990386]
[1744638013185,38.60774229,132.78,132.71,7.5352]
[1744638013366,38.60774229,132.75,132.71,7.5352]
[1744638013571,18.64964886,132.81,132.72,0.14216157]
[1744638013885,1.0,132.88,132.75,38.60774229]
[1744638014079,38.60774229,132.79,132.75,0.14216157]
[1744638014261,38.60774229,132.78,132.75,0.14216157]
[1744638014457,38.60774229,132.76,132.69,0.03]
[1744638014686,38.60774229,132.7,132.69,0.03]
[1744638015180,38.60774229,132.71,132.69,7.5663]
[1744638015383,38.60774229,132.7,132.69,0.03]
[1744638016676,46.14344229,132.7,132.69,0.03]
[1744638017607,64.93525272,132.7,132.69,0.03]
[1744638017891,46.14344229,132.7,132.69,0.03]
[1744638018091,9.42,132.75,132.69,0.03]
[1744638018282,9.42,132.75,132.71,38.60774229]
[1744638018474,9.42,132.75,132.7,0.14216157]
[1744638018792,9.42,132.75,132.71,38.74990386]
[1744638019085,38.60774229,132.73,132.69,0.03]
[1744638019276,38.60774229,132.74,132.69,38.63774229]
[1744638019476,38.60774229,132.73,132.69,0.03]
[1744638020182,38.60774229,132.7,132.69,0.03]
[1744638020767,46.14344229,132.7,132.69,0.03]
[1744638021288,64.79309115,132.7,132.69,0.03]
[1744638021478,38.60774229,132.72,132.69,0.03]
[1744638021681,18.64964886,132.73,132.69,0.03]
[1744638021859,7.5335,132.74,132.69,0.03]
[1744638022063,38.60774229,132.72,132.69,0.03]
[1744638022566,38.60774229,132.7,132.69,0.03]
[1744638024598,38.60774229,132.7,132.63,0.03]
[1744638024599,0.14216157,132.68,132.63,0.03]
[1744638024792,9.44,132.67,132.63,0.03]
[1744638024962,38.60774229,132.65,132.63,0.03]
[1744638025166,38.60774229,132.64,132.63,0.03]
[1744638027679,7.5386,132.65,132.63,0.03]
[1744638027876,57.25739115,132.64,132.63,0.03]
[1744638028488,64.93875272,132.64,132.63,0.03]
[1744638028688,65.79659115,132.64,132.63,0.03]
[1744638029485,65.93875272,132.64,132.63,0.03]
[1744638030096,65.79659115,132.64,132.63,0.03]
[1744638030499,65.93875272,132.64,132.63,0.03]
[1744638030798,1.0,132.64,132.63,0.03]
[1744638031101,58.25739115,132.64,132.63,0.03]
[1744638031480,47.14694229,132.64,132.63,0.03]
[1744638031677,39.60774229,132.64,132.63,0.03]
[1744638031878,47.14694229,132.64,132.63,0.03]
[1744638032078,65.79659115,132.64,132.63,0.03]
[1744638032278,65.93875272,132.64,132.63,0.03]
[1744638033172,66.08091429,132.64,132.63,0.03]
[1744638033378,57.25739115,132.59,132.58,0.03]
[1744638033602,38.60774229,132.59,132.58,0.03]
[1744638033982,9.46,132.6,132.58,0.03]
[1744638034305,1.0,132.64,132.59,46.14974229]
[1744638034623,1.0,132.64,132.61,38.60774229]
[1744638034804,1.0,132.64,132.62,0.14216157]
[1744638034973,1.0,132.64,132.62,38.60774229]
[1744638035170,38.60774229,132.63,132.58,0.03]
[1744638035403,1.0,132.64,132.58,7.5725]
[1744638035610,38.60774229,132.62,132.58,7.5725]
[1744638035911,38.60774229,132.62,132.59,0.14216157]
[1744638036086,38.60774229,132.62,132.58,7.5725]
[1744638036409,1.0,132.64,132.59,38.74990386]
[1744638036577,1.0,132.64,132.61,38.60774229]
[1744638037288,1.0,132.64,132.61,0.14216157]
[1744638037677,1.0,132.64,132.61,38.74990386]
[1744638037877,1.0,132.64,132.63,0.14216157]
[1744638038106,1.0,132.64,132.63,46.28960386]
[1744638038279,1.0,132.64,132.63,46.573927]
[1744638038789,1.0,132.64,132.58,138.99264886]
[1744638038790,49.06774229,132.64,132.58,0.03]
[1744638039001,38.60774229,132.6,132.58,0.03]
[1744638039300,38.60774229,132.59,132.58,0.03]
[1744638039501,57.39955272,132.59,132.58,0.03]
[1744638040283,64.79939115,132.59,132.58,0.03]
[1744638040720,1.0,132.54,132.31,7.543]
[1744638041012,6.0914,132.58,132.11,96.54158644]
[1744638041013,20.21829514,132.12,132.11,96.54158644]
[1744638041175,137.41768112,132.12,132.11,27.01321173]
[1744638041378,19.933972,132.1,132.09,4.78875847]
[1744638041593,57.4812375,132.06,132.05,22.47936224]
[1744638041794,97.29161815,132.06,132.05,22.47936224]
[1744638042010,1.28432314,132.02,131.99,10.38]
[1744638042205,9.00108471,132.02,132.01,178.11886899]
[1744638042389,66.25847586,132.02,132.01,178.11886899]
[1744638042786,105.00837972,132.02,132.01,114.44936899]
[1744638042983,144.99228112,132.02,132.01,19.39586899]
[1744638043201,20.21829514,131.99,131.98,147.62585116]
[1744638043512,20.21829514,131.94,131.91,2.6360079]
[1744638043689,97.29161815,131.94,131.93,181.75298217]
[1744638043882,97.43377972,131.94,131.93,181.75298217]
[1744638044084,97.43377972,131.94,131.91,2.6360079]
[1744638044085,1.0,131.95,131.91,2.6360079]
[1744638044286,38.60774229,131.92,131.91,2.6360079]
[1744638044621,5.28846338,131.94,131.91,2.1360079]
[1744638044802,1.0,131.92,131.91,2.1360079]
[1744638045007,39.60774229,131.92,131.91,2.1360079]
[1744638045214,38.60774229,131.93,131.91,2.1360079]
[1744638045392,1.0,131.92,131.91,2.1360079]
[1744638045702,5.28846338,131.92,131.91,2.1360079]
[1744638045906,6.28846338,131.92,131.91,12.5360079]
[1744638046116,6.28846338,131.92,131.91,24.83876846]
[1744638046117,5.28846338,131.92,131.91,24.83876846]
[1744638046411,5.28846338,131.92,131.91,35.23876846]
[1744638046594,5.28846338,131.92,131.91,49.00774229]
[1744638046911,1.0,131.98,131.91,49.00774229]
[1744638047115,1.0,131.95,131.94,38.60774229]
[1744638047414,1.0,131.97,131.94,38.60774229]
[1744638047600,1.0,131.98,131.95,38.60774229]
[1744638047813,1.0,132.01,131.97,38.60774229]
[1744638048114,1.0,132.0,131.96,38.60774229]
[1744638048316,1.0,131.99,131.96,49.02774229]
[1744638048620,1.0,132.01,131.97,38.60774229]
[1744638048787,1.0,131.99,131.97,49.02774229]
[1744638048992,1.0,131.98,131.96,38.60774229]
[1744638049198,1.0,132.0,131.96,38.60774229]
[1744638049412,1.0,131.99,131.97,38.60774229]
[1744638049693,1.0,131.99,131.98,38.60774229]
[1744638049889,1.0,132.01,131.98,38.60774229]
[1744638050083,1.0,132.01,132.0,38.60774229]
[1744638050295,1.0,131.99,131.97,38.60774229]
[1744638050516,1.0,131.99,131.98,38.60774229]
[1744638050810,1.0,131.99,131.97,38.60774229]
[1744638051022,1.0,132.01,131.98,38.60774229]
[1744638051202,1.0,132.0,131.92,1.63]
[1744638051404,1.0,131.99,131.95,38.60774229]
[1744638051717,1.0,132.0,131.98,38.60774229]
[1744638051926,0.14216157,132.03,131.92,1.63]
[1744638051927,1.0,131.99,131.92,1.63]
[1744638052219,1.0,131.97,131.94,38.60774229]
[1744638052420,1.0,131.98,131.96,38.60774229]
[1744638052599,1.0,132.0,131.97,38.60774229]
[1744638052801,1.0,131.99,131.94,38.60774229]
[1744638053003,1.0,131.99,131.98,38.60774229]
[1744638053317,1.0,132.01,131.98,38.60774229]
[1744638053521,1.0,132.01,131.97,10.42]
[1744638053818,1.0,132.0,131.94,49.02774229]
[1744638053989,1.0,131.99,131.98,38.60774229]
[1744638054195,1.0,131.98,131.92,19.6303]
[1744638054389,1.0,132.0,131.92,19.6303]
[1744638054685,1.0,131.97,131.94,38.60774229]
[1744638055105,1.0,131.93,131.92,1.63]
[1744638055299,1.0,131.93,131.91,0.03]
[1744638055503,1.0,131.92,131.91,0.03]
[1744638055919,39.60774229,131.92,131.91,0.03]
[1744638056120,1.0,131.92,131.91,0.03]
[1744638056719,39.60774229,131.92,131.91,0.03]
[1744638056927,1.0,131.92,131.91,0.03]
[1744638057096,39.60774229,131.92,131.91,0.03]
[1744638057295,39.74990386,131.92,131.91,0.03]
[1744638057627,58.82603743,131.92,131.91,0.03]
[1744638058121,1.0,131.8,131.71,10.42]
[1744638058314,1.0,131.81,131.71,10.42]
[1744638058530,1.0,131.81,131.79,38.60774229]
[1744638058689,1.0,131.81,131.76,38.60774229]
[1744638058895,1.0,131.84,131.8,38.60774229]
[1744638059090,1.0,131.83,131.77,10.42]
[1744638059319,1.0,131.83,131.76,49.04774229]
[1744638059499,1.0,131.82,131.76,10.44]
[1744638059697,1.0,131.79,131.76,10.44]
[1744638059910,39.60774229,131.8,131.71,10.44]
[1744638060213,1.0,131.8,131.76,38.60774229]
[1744638060518,1.0,131.82,131.78,38.60774229]
[1744638060724,1.0,131.82,131.78,46.19604229]
[1744638061023,1.0,131.84,131.78,7.5883]
[1744638061226,1.0,131.82,131.78,7.5883]
[1744638061391,39.60774229,131.82,131.78,7.5883]
[1744638061591,1.0,131.83,131.79,38.60774229]
[1744638061828,1.0,131.83,131.78,7.5883]
[1744638061829,38.60774229,131.8,131.76,7.5895]
[1744638062005,39.60774229,131.82,131.76,7.5895]
[1744638062192,3.37615911,131.92,131.8,38.60774229]
[1744638062193,1.0,131.81,131.8,38.60774229]
[1744638062519,1.0,131.83,131.81,7.5866]
[1744638062817,1.0,131.84,131.81,38.60774229]
[1744638063700,39.60774229,131.86,131.76,32.13993237]
[1744638063904,1.0,131.84,131.81,38.60774229]
[1744638064228,1.0,131.86,131.82,38.60774229]
[1744638064405,1.0,131.9,131.86,7.5838]
[1744638064606,39.60774229,131.9,131.86,7.5838]
[1744638064817,1.0,131.92,131.88,38.60774229]
[1744638064818,1.0,131.91,131.88,38.60774229]
[1744638064995,39.60774229,131.89,131.86,7.5838]
[1744638065200,2.0,131.92,131.88,38.60774229]
[1744638065497,1.0,131.92,131.86,26.5433]
[1744638065704,1.0,131.91,131.87,38.60774229]
[1744638065915,1.0,131.91,131.86,65.15104229]
[1744638066103,0.063,132.06,131.91,44.79181043]
[1744638066296,0.063,132.06,131.88,38.60774229]
[1744638066513,39.67074229,132.06,131.93,38.60774229]
[1744638066705,38.60774229,131.98,131.92,38.60774229]
[1744638066918,38.60774229,131.99,131.92,38.60774229]
[1744638067217,26.0,132.02,131.93,38.60774229]
[1744638067421,1.37615911,132.05,132.0,38.60774229]
[1744638067634,0.063,132.06,132.02,38.60774229]
[1744638067798,38.67074229,132.06,132.0,38.60774229]
[1744638067998,0.063,132.06,132.01,38.60774229]
[1744638068395,0.063,132.06,132.02,7.5742]
[1744638068806,38.60774229,132.04,131.95,48.3314]
[1744638069019,38.67074229,132.06,131.98,38.60774229]
[1744638069328,0.063,132.06,131.99,38.60774229]
[1744638069528,38.60774229,132.04,131.99,38.60774229]
[1744638069717,38.60774229,132.03,131.97,57.55034229]
[1744638070023,0.063,132.06,132.01,38.60774229]
[1744638070324,38.67074229,132.06,132.0,38.60774229]
[1744638070529,38.60774229,132.05,131.95,0.14216157]
[1744638070706,0.063,132.06,131.98,0.14216157]
[1744638070904,0.063,132.06,132.03,38.60774229]
[1744638071306,0.063,132.06,132.02,38.60774229]
[1744638071598,0.063,132.06,132.03,38.60774229]
[1744638072218,0.063,132.06,131.98,0.14216157]
[1744638072430,38.67074229,132.06,132.0,38.60774229]
[1744638072605,0.063,132.06,132.02,38.60774229]
[1744638072806,0.063,132.06,132.03,38.60774229]
[1744638073108,1.0,132.13,132.03,38.60774229]
[1744638073109,82.9,132.17,132.05,77.35764615]
[1744638073306,82.9,132.17,132.11,38.60774229]
[1744638073507,82.9,132.17,132.12,38.60774229]
[1744638073712,82.9,132.17,132.13,38.60774229]
[1744638073912,38.60774229,132.19,132.14,38.60774229]
[1744638074114,49.35074229,132.2,132.15,38.60774229]
[1744638074310,38.60774229,132.18,132.06,38.60774229]
[1744638074524,38.60774229,132.18,132.06,26.503]
[1744638074525,38.60774229,132.12,132.06,26.503]
[1744638074829,38.60774229,132.14,132.09,38.60774229]
[1744638075127,38.60774229,132.18,132.08,38.60774229]
[1744638075300,38.60774229,132.14,132.09,38.60774229]
[1744638075505,38.60774229,132.18,132.1,38.60774229]
[1744638075705,38.60774229,132.15,132.11,38.60774229]
[1744638076218,38.60774229,132.17,132.13,38.60774229]
[1744638076418,38.60774229,132.18,132.13,38.60774229]
[1744638076725,38.60774229,132.16,132.13,7.5678]
[1744638077028,38.60774229,132.18,132.14,38.60774229]
[1744638077231,38.60774229,132.18,132.13,65.09624229]
[1744638077530,38.60774229,132.17,132.13,65.09624229]
[1744638077727,38.60774229,132.16,132.13,7.5678]
[1744638077928,38.60774229,132.14,132.07,38.60774229]
[1744638078122,38.60774229,132.11,132.07,18.9285]
[1744638078328,38.60774229,132.14,132.09,38.60774229]
[1744638078501,38.60774229,132.14,132.08,65.10674229]
[1744638078702,38.60774229,132.1,132.08,7.5711]
[1744638078901,19.07613357,132.17,132.08,7.5711]
[1744638079107,38.60774229,132.11,132.08,7.5711]
[1744638079307,38.60774229,132.13,132.08,65.10674229]
[1744638079529,38.60774229,132.15,132.1,38.60774229]
[1744638079729,0.063,132.2,132.14,38.60774229]
[1744638080039,0.063,132.2,132.08,75.0348]
[1744638080040,38.60774229,132.16,132.08,75.0348]
[1744638080208,38.60774229,132.13,132.08,64.3548]
[1744638080408,38.60774229,132.12,132.08,26.499]
[1744638081128,38.60774229,132.13,132.08,65.10674229]
[1744638081519,38.60774229,132.09,132.06,7.5723]
[1744638081825,0.14216157,132.15,132.06,7.5723]
[1744638082131,38.60774229,132.12,132.07,38.60774229]
[1744638082332,38.60774229,132.1,132.06,7.5723]
[1744638082509,38.60774229,132.09,132.05,7.5728]
[1744638082830,38.60774229,132.11,132.06,42.84861183]
[1744638083010,38.60774229,132.13,132.08,38.60774229]
[1744638083205,38.60774229,132.15,132.1,38.60774229]
[1744638083404,2.6759215,132.12,132.08,0.28432314]
[1744638083606,2.6759215,132.12,132.11,38.60774229]
[1744638083837,2.6759215,132.12,132.11,38.74990386]
[1744638084336,38.60774229,132.19,132.11,42.9907734]
[1744638084515,38.60774229,132.17,132.13,7.5683]
[1744638084719,0.063,132.2,132.13,7.5683]
[1744638084720,38.60774229,132.16,132.13,7.5683]
[1744638085227,38.60774229,132.17,132.14,4.24086954]
[1744638085544,82.9,132.11,132.05,38.60774229]
[1744638085827,0.28432314,132.04,131.93,7.5797]
[1744638086035,38.60774229,131.94,131.92,7.6102]
[1744638086207,38.60774229,131.93,131.92,0.03]
[1744638087830,5.4071678,131.93,131.92,0.03]
[1744638088612,5.4071678,131.93,131.92,7.6103]
[1744638089024,38.60774229,131.95,131.92,7.6103]
[1744638089614,38.60774229,131.93,131.92,0.03]
[1744638090237,10.34,131.98,131.92,0.03]
[1744638090418,0.14216157,131.97,131.92,0.03]
[1744638090619,38.60774229,131.95,131.92,0.03]
[1744638090819,38.60774229,131.94,131.92,0.03]
[1744638091022,38.60774229,132.0,131.92,0.03]
[1744638091320,38.60774229,131.95,131.92,0.03]
[1744638092237,0.14216157,131.99,131.92,0.03]
[1744638092437,18.64964886,132.03,131.94,38.60774229]
[1744638092739,38.60774229,131.99,131.94,46.18634229]
[1744638093236,0.14216157,132.02,131.95,38.60774229]
[1744638093425,38.60774229,132.01,131.96,38.60774229]
[1744638093610,10.34,132.03,131.97,38.60774229]
[1744638093815,10.34,132.03,131.94,65.13434229]
[1744638093816,0.14216157,132.05,131.98,38.60774229]
[1744638094120,38.60774229,132.03,131.98,38.60774229]
[1744638094439,38.60774229,132.05,132.0,38.60774229]
[1744638094667,0.14216157,132.09,131.98,7.5769]
[1744638094856,38.60774229,132.05,132.0,38.60774229]
[1744638095014,0.14216157,132.11,132.01,38.60774229]
[1744638095344,38.60774229,132.07,132.02,38.60774229]
[1744638095535,38.60774229,132.04,131.99,38.60774229]
[1744638095736,0.14216157,132.08,131.98,7.5769]
[1744638095737,38.60774229,132.01,131.98,7.5769]
[1744638095945,38.60774229,132.02,131.98,7.5769]
[1744638096129,38.60774229,132.04,131.98,46.18464229]
[1744638096323,48.94774229,132.12,132.02,38.60774229]
[1744638096524,38.60774229,132.07,131.98,26.5191]
[1744638096721,38.60774229,132.04,131.98,26.5191]
[1744638097032,38.60774229,132.0,131.96,7.578]
[1744638097739,38.60774229,131.99,131.95,6.7558]
[1744638097932,38.60774229,131.99,131.92,18.9796]